bitfinex-derivatives/quotes_BNBF0:USTF0_20250710
["timestamp","ask_amount","ask_price","bid_price","bid_amount"]
[1752143726936,1.44467952,670.02,669.21,1.445]
[1752143727139,1.44467952,670.01,669.21,1.445]
[1752143727439,1.44467952,670.0,669.21,1.445]
[1752143727637,1.44467952,669.99,669.21,1.445]
[1752143727937,1.44467952,669.98,669.21,1.445]
[1752143728140,1.44467952,669.97,669.23,3.35163274]
[1752143728339,1.44467952,669.96,669.23,3.35163274]
[1752143728540,1.44467952,669.95,669.23,3.35163274]
[1752143728741,1.44467952,669.94,669.23,3.35163274]
[1752143728942,1.4444178,669.93,669.23,3.35163274]
[1752143729139,1.4444178,669.92,669.29,3.35163274]
[1752143729338,1.4444178,669.91,669.28,3.35163274]
[1752143729542,1.66390182,670.11,669.28,3.35163274]
[1752143729739,1.44438146,670.1,669.28,3.35163274]
[1752143729938,1.44438146,670.09,669.28,3.35163274]
[1752143730142,1.44438146,670.08,669.28,3.35163274]
[1752143730339,1.44438146,670.07,669.28,3.35163274]
[1752143730544,1.44438146,670.06,669.28,3.35163274]
[1752143730741,1.44438146,670.05,669.28,3.35163274]
[1752143731042,1.44438146,670.04,669.28,3.35163274]
[1752143731241,1.66390182,670.12,669.27,3.35163274]
[1752143731242,1.44438146,670.03,669.27,3.35163274]
[1752143731438,1.66390182,670.12,669.27,3.35163274]
[1752143731439,1.44438146,670.02,669.27,3.35163274]
[1752143731639,1.44438146,670.01,669.27,3.35163274]
[1752143731839,1.44438146,670.01,669.21,1.445]
[1752143731840,1.44438146,670.0,669.25,3.35163274]
[1752143732040,1.44438146,669.99,669.25,3.35163274]
[1752143732244,1.44438146,669.98,669.25,3.35163274]
[1752143732444,1.44438146,669.97,669.25,3.35163274]
[1752143732645,1.44438146,669.96,669.25,3.35163274]
[1752143732845,1.44438146,669.95,669.25,3.35163274]
[1752143733040,1.44438146,669.94,669.25,3.35163274]
[1752143733346,1.44438146,669.93,669.26,3.35163274]
[1752143733546,1.44438146,669.92,669.26,3.35163274]
[1752143733742,1.44438146,669.91,669.26,3.35163274]
[1752143733944,1.66390182,670.12,669.26,3.35163274]
[1752143734147,1.44435114,670.11,669.26,3.35163274]
[1752143734346,1.44435114,670.1,669.26,3.35163274]
[1752143734543,1.44435114,670.09,669.26,3.35163274]
[1752143734842,1.44435114,670.08,669.26,3.35163274]
[1752143735048,1.44435114,670.07,669.26,3.35163274]
[1752143735347,1.44435114,670.06,669.26,3.35163274]
[1752143735644,1.44435114,670.05,669.26,3.35163274]
[1752143735945,1.44435114,670.04,669.26,3.35163274]
[1752143736244,1.44435114,670.03,669.27,3.35163274]
[1752143736447,1.44435114,670.02,669.27,3.35163274]
[1752143736744,1.44435114,670.01,669.28,3.35163274]
[1752143736948,1.44435114,670.0,669.28,3.35163274]
[1752143737145,1.44435114,669.99,669.28,3.35163274]
[1752143737345,1.44435114,669.98,669.28,3.35163274]
[1752143737544,1.44435114,669.97,669.28,3.35163274]
[1752143737747,1.44435114,669.96,669.28,3.35163274]
[1752143737948,1.44435114,669.95,669.28,3.35163274]
[1752143738148,1.44435114,669.94,669.28,3.35163274]
[1752143738450,1.44435114,669.93,669.28,3.35163274]
[1752143738647,1.44435114,669.92,669.28,3.35163274]
[1752143738944,1.44435114,669.91,669.28,3.35163274]
[1752143739244,1.66390182,670.12,669.28,3.35163274]
[1752143739449,1.44462853,670.11,669.28,3.35163274]
[1752143739645,1.44462853,670.1,669.28,3.35163274]
[1752143739848,1.44462853,670.09,669.28,3.35163274]
[1752143740144,1.44462853,670.08,669.28,3.35163274]
[1752143740349,1.44462853,670.07,669.28,3.35163274]
[1752143740548,1.44462853,670.06,669.28,3.35163274]
[1752143740745,1.44462853,670.05,669.28,3.35163274]
[1752143741046,1.44462853,670.04,669.28,3.35163274]
[1752143741350,1.44462853,670.03,669.29,3.35163274]
[1752143741552,1.44462853,670.02,669.29,3.35163274]
[1752143741851,1.44462853,670.01,669.31,3.35163274]
[1752143742150,1.44462853,670.0,669.31,3.35163274]
[1752143742351,1.44462853,669.99,669.32,3.35163274]
[1752143742547,1.44462853,669.98,669.32,3.35163274]
[1752143742749,1.44462853,669.97,669.32,3.35163274]
[1752143742947,1.44462853,669.96,669.32,3.35163274]
[1752143743152,1.44462853,669.95,669.32,3.35163274]
[1752143743349,1.44462853,669.94,669.32,3.35163274]
[1752143743550,1.44462853,669.93,669.33,3.35163274]
[1752143743749,1.44462853,669.92,669.32,3.35163274]
[1752143743949,1.44462853,669.91,669.32,3.35163274]
[1752143744151,1.66390182,670.1,669.32,3.35163274]
[1752143744350,1.44502561,670.09,669.32,3.35163274]
[1752143744550,1.44502561,670.08,669.33,3.35163274]
[1752143744753,1.44502561,670.08,669.21,1.445]
[1752143744754,1.44502561,670.07,669.32,3.35163274]
[1752143745053,1.44502561,670.06,669.32,3.35163274]
[1752143745254,1.44502561,670.05,669.32,3.35163274]
[1752143745449,5.55812072,670.76,669.21,1.445]
[1752143745450,1.44502561,670.04,669.33,3.35163274]
[1752143745654,1.44502561,670.03,669.33,3.35163274]
[1752143745855,1.44502561,670.02,669.33,3.35163274]
[1752143746053,1.44502561,670.01,669.33,3.35163274]
[1752143746253,1.44502561,670.0,669.33,3.35163274]
[1752143746452,1.44502561,669.99,669.33,3.35163274]
[1752143746653,1.44502561,669.98,669.27,3.35163274]
[1752143746858,1.44502561,669.97,669.27,3.35163274]
[1752143747054,1.44502561,669.96,669.27,3.35163274]
[1752143747253,1.44502561,669.95,669.27,3.35163274]
[1752143747553,1.44502561,669.94,669.27,3.35163274]
[1752143747757,1.44502561,669.93,669.27,3.35163274]
[1752143747956,1.44502561,669.92,669.27,3.35163274]
[1752143748153,1.44502561,669.92,669.21,1.445]
[1752143748154,1.44502561,669.91,669.28,3.35163274]
[1752143748357,1.44502561,669.9,669.28,3.35163274]
[1752143748557,1.44502561,669.89,669.28,3.35163274]
[1752143748752,1.44502561,669.88,669.28,3.35163274]
[1752143748956,1.44502561,669.87,669.28,3.35163274]
[1752143749155,1.66390182,670.09,669.28,3.35163274]
[1752143749355,1.44639587,670.08,669.28,3.35163274]
[1752143749657,1.44639587,670.07,669.28,3.35163274]
[1752143749856,1.44639587,670.06,669.28,3.35163274]
[1752143750055,1.44639587,670.05,669.28,3.35163274]
[1752143750259,1.44639587,670.04,669.28,3.35163274]
[1752143750455,1.44639587,670.03,669.29,3.35163274]
[1752143750654,1.44639587,670.02,669.29,3.35163274]
[1752143750954,1.44639587,670.01,669.29,3.35163274]
[1752143751155,1.44639587,670.0,669.29,3.35163274]
[1752143751354,1.44639587,669.99,669.29,3.35163274]
[1752143751555,1.66390182,670.08,669.21,1.445]
[1752143751556,1.44639587,669.98,669.3,3.35163274]
[1752143751755,1.44639587,669.97,669.3,3.35163274]
[1752143751959,1.44639587,669.96,669.3,3.35163274]
[1752143752159,1.44639587,669.95,669.29,3.35163274]
[1752143752357,1.44639587,669.95,669.21,1.445]
[1752143752358,1.44639587,669.94,669.3,3.35163274]
[1752143752557,1.44639587,669.93,669.3,3.35163274]
[1752143752759,1.44639587,669.92,669.24,3.35163274]
[1752143753061,1.44639587,669.91,669.24,3.35163274]
[1752143753261,1.44639587,669.9,669.24,3.35163274]
[1752143753458,1.44639587,669.89,669.23,3.35163274]
[1752143753658,1.44639587,669.88,669.23,3.35163274]
[1752143753961,1.44639587,669.87,669.23,3.35163274]
[1752143754163,1.44639587,669.86,669.23,3.35163274]
[1752143754359,1.44639587,669.85,669.23,3.35163274]
[1752143754563,1.44639587,669.84,669.23,3.35163274]
[1752143754760,1.44639587,669.83,669.23,3.35163274]
[1752143754963,1.66390182,670.09,669.23,3.35163274]
[1752143755164,1.4480488,670.08,669.23,3.35163274]
[1752143755363,1.4480488,670.07,669.23,3.35163274]
[1752143755564,1.4480488,670.06,669.25,3.35163274]
[1752143755761,1.4480488,670.05,669.25,3.35163274]
[1752143755966,1.4480488,670.04,669.25,3.35163274]
[1752143756165,1.4480488,670.03,669.25,3.35163274]
[1752143756361,1.4480488,670.02,669.26,1.939]
[1752143756568,1.4480488,670.01,669.26,1.939]
[1752143756768,1.4480488,670.0,669.26,5.29063274]
[1752143756966,1.4480488,669.99,669.26,1.939]
[1752143757162,1.4480488,669.98,669.26,1.939]
[1752143757363,1.4480488,669.97,669.26,1.939]
[1752143757568,1.4480488,669.96,669.26,1.939]
[1752143757769,1.4480488,669.95,669.26,1.939]
[1752143757969,1.4480488,669.94,669.26,1.939]
[1752143758172,1.4480488,669.93,669.26,1.939]
[1752143758469,1.4480488,669.92,669.26,1.939]
[1752143758666,1.4480488,669.91,669.26,1.939]
[1752143758966,1.4480488,669.9,669.26,1.939]
[1752143759166,1.4480488,669.89,669.26,1.939]
[1752143759364,1.4480488,669.88,669.26,1.939]
[1752143759566,1.44815615,669.87,669.26,1.939]
[1752143759765,1.44815615,669.86,669.26,1.939]
[1752143759970,1.44815615,669.85,669.26,1.939]
[1752143760170,1.44814795,669.84,669.26,1.939]
[1752143760370,1.66763039,670.14,669.26,1.939]
[1752143760666,1.66763039,670.12,669.26,1.939]
[1752143760870,1.4481397,670.11,669.26,1.939]
[1752143761070,1.4481397,670.1,669.26,1.939]
[1752143761268,1.66763039,670.12,669.26,1.939]
[1752143761269,1.4481397,670.09,669.26,1.939]
[1752143761564,1.4481397,670.08,669.27,3.35163274]
[1752143761766,1.4481397,670.07,669.27,3.35163274]
[1752143761970,1.4481397,670.06,669.28,3.35163274]
[1752143762169,1.4481397,670.06,669.26,1.939]
[1752143762170,1.4481397,670.05,669.27,3.35163274]
[1752143762366,1.4481397,670.04,669.27,3.35163274]
[1752143762668,1.4481397,670.03,669.28,3.35163274]
[1752143762866,1.4481397,670.02,669.28,3.35163274]
[1752143763070,1.4481397,670.01,669.28,3.35163274]
[1752143763271,1.4481397,670.0,669.28,3.35163274]
[1752143763471,1.4481397,669.99,669.28,3.35163274]
[1752143763671,1.4481397,669.98,669.28,3.35163274]
[1752143763869,1.4481397,669.97,669.28,3.35163274]
[1752143764172,1.4481397,669.96,669.28,3.35163274]
[1752143764369,1.4481397,669.95,669.29,3.35163274]
[1752143764669,1.4481397,669.94,669.29,3.35163274]
[1752143764971,1.4481397,669.93,669.29,3.35163274]
[1752143765171,1.4481397,669.92,669.29,3.35163274]
[1752143765372,1.4481397,669.91,669.29,3.35163274]
[1752143765572,1.4481397,669.9,669.29,3.35163274]
[1752143765769,1.4481397,669.89,669.29,3.35163274]
[1752143766068,1.4481397,669.88,669.29,3.35163274]
[1752143766268,1.4481397,669.87,669.28,3.35163274]
[1752143766471,1.4481397,669.86,669.29,3.35163274]
[1752143766672,1.4481397,669.85,669.26,1.939]
[1752143766869,1.4481397,669.84,669.26,1.939]
[1752143767068,1.4481397,669.83,669.26,1.939]
[1752143767271,1.4481397,669.82,669.26,1.939]
[1752143767469,1.4481397,669.81,669.26,1.939]
[1752143767669,1.4481397,669.8,669.26,1.939]
[1752143767872,1.4481397,669.79,669.26,1.939]
[1752143768072,1.66763039,670.02,669.26,1.939]
[1752143768273,1.44869011,670.01,669.26,1.939]
[1752143768473,1.44869011,670.0,669.26,1.939]
[1752143768674,1.44869011,669.99,669.26,1.939]
[1752143768974,1.44869011,669.98,669.26,1.939]
[1752143769172,1.44869011,669.97,669.26,1.939]
[1752143769369,1.44869011,669.96,669.26,1.939]
[1752143769572,1.44869011,669.95,669.26,1.939]
[1752143769771,1.44869011,669.94,669.26,1.939]
[1752143769970,1.44869011,669.93,669.26,1.939]
[1752143770173,1.44869011,669.92,669.26,1.939]
[1752143770375,1.44869011,669.91,669.26,5.29063274]
[1752143770675,1.44869011,669.9,669.27,3.35163274]
[1752143770874,1.44869011,669.89,669.27,3.35163274]
[1752143771073,1.44869011,669.88,669.27,3.35163274]
[1752143771372,1.44869011,669.87,669.27,3.35163274]
[1752143771576,1.44869011,669.86,669.27,3.35163274]
[1752143771876,1.44869011,669.85,669.27,3.35163274]
[1752143772077,1.44869011,669.84,669.27,3.35163274]
[1752143772278,1.44869011,669.83,669.27,3.35163274]
[1752143772573,1.44869011,669.82,669.26,1.939]
[1752143772779,1.44869011,669.81,669.26,1.939]
[1752143773079,1.44869011,669.8,669.26,1.939]
[1752143773279,1.44869011,669.79,669.26,1.939]
[1752143773475,1.44869011,669.78,669.26,1.939]
[1752143773675,1.44869011,669.77,669.26,1.939]
[1752143773875,1.44869011,669.76,669.26,1.939]
[1752143774179,1.44869011,669.75,669.26,1.939]
[1752143774477,1.44869011,669.74,669.26,1.939]
[1752143774679,1.44869011,669.73,669.26,1.939]
[1752143774874,1.66763039,670.06,669.26,1.939]
[1752143775074,1.44927407,670.05,669.26,1.939]
[1752143775274,1.44927407,670.04,669.26,1.939]
[1752143775479,1.44927407,670.03,669.26,1.939]
[1752143775679,1.44927407,670.02,669.26,1.939]
[1752143775880,1.44927407,670.01,669.26,1.939]
[1752143776181,1.44927407,670.0,669.26,1.939]
[1752143776377,1.44927407,669.99,669.26,1.939]
[1752143776583,1.44927407,669.98,669.26,1.939]
[1752143776781,1.44927407,669.97,669.26,1.939]
[1752143777079,1.44927407,669.96,669.26,1.939]
[1752143777278,1.44927407,669.95,669.26,1.939]
[1752143777477,1.44927407,669.94,669.26,1.939]
[1752143777782,1.44927407,669.93,669.26,1.939]
[1752143777984,1.44927407,669.92,669.26,1.939]
[1752143778279,1.44927407,669.91,669.26,1.939]
[1752143778583,1.44927407,669.9,669.26,1.939]
[1752143778879,1.44927407,669.89,669.26,1.939]
[1752143779083,1.44927407,669.88,669.26,1.939]
[1752143779282,1.44927407,669.87,669.26,1.939]
[1752143779481,1.44927407,669.86,669.26,1.939]
[1752143779779,1.44927407,669.85,669.26,1.939]
[1752143779983,1.44927407,669.84,669.26,1.939]
[1752143780183,1.44927407,669.83,669.26,1.939]
[1752143780383,1.44927407,669.82,669.26,1.939]
[1752143780580,1.44927407,669.81,669.26,1.939]
[1752143780781,1.44927407,669.8,669.26,1.939]
[1752143780980,1.44927407,669.79,669.26,1.939]
[1752143781181,1.44927407,669.78,669.26,1.939]
[1752143781381,1.44927407,669.77,669.27,3.35163274]
[1752143781680,1.66763039,670.03,669.3,3.35163274]
[1752143781885,3.11619184,670.02,669.3,3.35163274]
[1752143782185,1.44856145,670.01,669.28,3.35163274]
[1752143782389,1.44856145,670.0,669.28,3.35163274]
[1752143782589,1.44856145,669.99,669.28,3.35163274]
[1752143782791,1.44856145,669.98,669.28,3.35163274]
[1752143782992,1.44856145,669.97,669.28,3.35163274]
[1752143783288,1.44856145,669.96,669.28,3.35163274]
[1752143783489,1.44856145,669.95,669.28,3.35163274]
[1752143783692,1.44856145,669.94,669.28,3.35163274]
[1752143783893,1.44856145,669.93,669.28,3.35163274]
[1752143784090,1.44856145,669.92,669.28,3.35163274]
[1752143784289,1.44856145,669.91,669.28,3.35163274]
[1752143784492,1.44856145,669.9,669.28,3.35163274]
[1752143784691,1.44856145,669.89,669.28,3.35163274]
[1752143784893,1.44856145,669.88,669.28,3.35163274]
[1752143785091,1.44856145,669.87,669.28,3.35163274]
[1752143785291,1.44856145,669.86,669.28,3.35163274]
[1752143785492,1.44856145,669.85,669.32,3.35163274]
[1752143785697,1.44856145,669.84,669.32,3.35163274]
[1752143785897,1.44856145,669.83,669.32,3.35163274]
[1752143786094,1.44856145,669.82,669.32,3.35163274]
[1752143786293,1.44856145,669.81,669.32,3.35163274]
[1752143786498,1.44856145,669.8,669.32,3.35163274]
[1752143786697,1.66763039,670.01,669.26,1.939]
[1752143786698,1.44856145,669.79,669.3,3.35163274]
[1752143786896,1.44856145,669.78,669.3,3.35163274]
[1752143787095,1.44856145,669.77,669.3,3.35163274]
[1752143787394,1.66763039,669.99,669.3,3.35163274]
[1752143787597,1.44852808,669.98,669.3,3.35163274]
[1752143787896,1.44852808,669.97,669.3,3.35163274]
[1752143788095,1.44852808,669.96,669.3,3.35163274]
[1752143788295,1.44852808,669.95,669.3,3.35163274]
[1752143788494,1.44852808,669.94,669.3,3.35163274]
[1752143788694,1.44852808,669.93,669.3,3.35163274]
[1752143788897,1.44852808,669.92,669.3,3.35163274]
[1752143789097,1.44852808,669.91,669.3,3.35163274]
[1752143789296,1.44852808,669.9,669.3,3.35163274]
[1752143789495,1.44852808,669.89,669.3,3.35163274]
[1752143789699,1.44852808,669.88,669.26,1.939]
[1752143789995,1.44852808,669.87,669.26,1.939]
[1752143790198,1.44852808,669.86,669.26,1.939]
[1752143790397,1.44852808,669.85,669.26,1.939]
[1752143790596,1.44852808,669.84,669.26,1.939]
[1752143790799,1.44852808,669.83,669.26,1.939]
[1752143790999,1.44852808,669.82,669.26,1.939]
[1752143791197,1.44852808,669.81,669.26,1.939]
[1752143791397,1.44852808,669.8,669.26,1.939]
[1752143791599,1.44852808,669.79,669.26,1.939]
[1752143791896,1.44852808,669.78,669.26,1.939]
[1752143792097,1.44852808,669.77,669.26,1.939]
[1752143792300,1.44852808,669.76,669.26,1.939]
[1752143792497,1.44852808,669.75,669.26,1.939]
[1752143792696,1.44852808,669.74,669.26,1.939]
[1752143792896,1.44852808,669.73,669.26,1.939]
[1752143793100,1.66763039,670.06,669.26,1.939]
[1752143793397,1.44836031,670.05,669.26,1.939]
[1752143793596,1.44836031,670.04,669.26,1.939]
[1752143793800,1.44836031,670.03,669.26,1.939]
[1752143794002,1.44836031,670.02,669.26,1.939]
[1752143794201,1.44836031,670.01,669.26,1.939]
[1752143794503,1.44836031,670.0,669.26,1.939]
[1752143794700,1.44836031,669.99,669.26,1.939]
[1752143794900,1.44836031,669.98,669.26,1.939]
[1752143795101,1.44836031,669.97,669.26,1.939]
[1752143795302,1.44836031,669.96,669.26,1.939]
[1752143795505,1.44836031,669.95,669.26,1.939]
[1752143795705,1.44836031,669.94,669.26,1.939]
[1752143795904,1.44836031,669.93,669.26,1.939]
[1752143796106,1.44836031,669.92,669.26,1.939]
[1752143796406,1.44836031,669.91,669.26,1.939]
[1752143796607,1.44836031,669.9,669.26,1.939]
[1752143796904,1.44836031,669.89,669.26,1.939]
[1752143797107,1.44836031,669.88,669.26,1.939]
[1752143797305,1.44836031,669.87,669.26,1.939]
[1752143797503,1.44836031,669.86,669.26,1.939]
[1752143797703,1.44836031,669.85,669.26,1.939]
[1752143798006,1.44836031,669.84,669.26,1.939]
[1752143798204,1.44836031,669.83,669.26,1.939]
[1752143798507,1.44836031,669.82,669.26,1.939]
[1752143798808,1.44836031,669.81,669.26,1.939]
[1752143799008,1.44836031,669.8,669.26,1.939]
[1752143799305,1.66763039,670.09,669.26,5.29063274]
[1752143799503,1.4482995,670.08,669.26,5.29063274]
[1752143799708,1.4482995,670.07,669.26,5.29063274]
[1752143799908,1.4482995,670.06,669.26,5.29063274]
[1752143800205,1.4482995,670.05,669.26,5.29063274]
[1752143800403,1.4482995,670.04,669.26,5.29063274]
[1752143800602,1.4482995,670.03,669.26,1.939]
[1752143800806,1.4482995,670.02,669.26,1.939]
[1752143801005,1.4482995,670.01,669.26,1.939]
[1752143801208,1.4482995,670.0,669.26,1.939]
[1752143801509,1.4482995,669.99,669.26,1.939]
[1752143801709,1.4482995,669.98,669.26,1.939]
[1752143802008,1.4482995,669.97,669.26,1.939]
[1752143802210,1.4482995,669.96,669.26,1.939]
[1752143802411,1.4482995,669.95,669.26,1.939]
[1752143802610,1.4482995,669.94,669.26,1.939]
[1752143802808,1.4482995,669.93,669.26,1.939]
[1752143803012,1.4482995,669.92,669.26,1.939]
[1752143803211,1.4482995,669.91,669.26,1.939]
[1752143803412,1.4482995,669.9,669.38,3.35163274]
[1752143803711,1.4482995,669.89,669.38,3.35163274]
[1752143803909,1.4482995,669.88,669.38,3.35163274]
[1752143804110,1.4482995,669.87,669.38,3.35163274]
[1752143804307,1.4482995,669.86,669.38,3.35163274]
[1752143804512,1.4482995,669.85,669.38,3.35163274]
[1752143804710,1.4482995,669.84,669.38,3.35163274]
[1752143804909,1.4482995,669.83,669.38,3.35163274]
[1752143805214,1.44853932,669.82,669.37,3.35163274]
[1752143805410,1.66763039,670.05,669.37,3.35163274]
[1752143805608,1.44856158,670.04,669.37,3.35163274]
[1752143805808,1.44856158,670.03,669.37,3.35163274]
[1752143806010,1.44856158,670.02,669.37,3.35163274]
[1752143806209,1.44856158,670.01,669.37,3.35163274]
[1752143806410,1.44856158,670.0,669.37,3.35163274]
[1752143806713,1.44856158,670.0,669.28,0.25977225]
[1752143806714,3.11619197,669.99,669.31,3.35163274]
[1752143806907,3.11619197,669.98,669.31,3.35163274]
[1752143807209,1.44856158,669.97,669.31,3.35163274]
[1752143807411,1.44856158,669.96,669.31,3.35163274]
[1752143807711,1.44856158,669.95,669.32,1.549]
[1752143807912,1.44856158,669.94,669.32,1.549]
[1752143808111,1.44856158,669.93,669.32,1.549]
[1752143808410,1.44856158,669.92,669.32,1.549]
[1752143808612,1.44856158,669.91,669.32,1.549]
[1752143808811,1.44856158,669.9,669.32,1.549]
[1752143809015,1.44856158,669.89,669.32,1.549]
[1752143809214,1.44856158,669.88,669.32,1.549]
[1752143809413,1.44856158,669.87,669.32,1.549]
[1752143809615,1.44856158,669.86,669.32,1.549]
[1752143809812,1.44856158,669.85,669.32,1.549]
[1752143810017,1.44856158,669.84,669.32,1.549]
[1752143810314,1.44856158,669.83,669.32,1.549]
[1752143810512,1.44856158,669.82,669.32,1.549]
[1752143810716,1.44856158,669.81,669.32,1.549]
[1752143810918,1.44856158,669.8,669.32,1.549]
[1752143811218,1.44856158,669.79,669.32,1.549]
[1752143811416,1.44856158,669.78,669.32,1.549]
[1752143811620,1.44856158,669.77,669.32,1.549]
[1752143811816,1.44856158,669.76,669.32,1.549]
[1752143812018,1.44856158,669.75,669.32,1.549]
[1752143812217,1.44856158,669.74,669.32,1.549]
[1752143812522,1.44856158,669.73,669.32,1.549]
[1752143812718,1.44856158,669.72,669.32,1.549]
[1752143813022,1.44856158,669.71,669.32,1.549]
[1752143813220,1.44856158,669.7,669.32,1.549]
[1752143813421,1.44856158,669.69,669.32,1.549]
[1752143813622,1.66763039,670.02,669.32,1.549]
[1752143813822,1.44888856,670.01,669.32,1.549]
[1752143814122,1.44888856,670.0,669.32,1.549]
[1752143814321,2.22324829,670.2,669.32,1.549]
[1752143814322,1.44888856,669.99,669.32,1.549]
[1752143814519,1.44888856,669.98,669.32,1.549]
[1752143814817,1.44888856,669.97,669.32,1.549]
[1752143815018,1.44888856,669.96,669.32,1.549]
[1752143815217,1.44888856,669.95,669.32,1.549]
[1752143815418,1.44888856,669.94,669.32,1.549]
[1752143815722,1.44888856,669.93,669.32,1.549]
[1752143815920,1.44888856,669.92,669.32,1.549]
[1752143816117,1.44888856,669.91,669.32,1.549]
[1752143816323,1.44888856,669.9,669.32,1.549]
[1752143816523,1.44888856,669.89,669.32,1.549]
[1752143816724,1.44888856,669.88,669.32,1.549]
[1752143816923,1.44888856,669.87,669.32,1.549]
[1752143817120,1.44888856,669.86,669.32,1.549]
[1752143817321,1.44888856,669.85,669.32,1.549]
[1752143817521,1.44888856,669.84,669.32,1.549]
[1752143817721,1.44888856,669.83,669.32,1.549]
[1752143817921,1.44888856,669.82,669.32,1.549]
[1752143818128,1.44888856,669.81,669.32,1.549]
[1752143818326,1.44888856,669.8,669.32,1.549]
[1752143818526,1.44888856,669.79,669.32,1.549]
[1752143818822,1.44888856,669.78,669.29,3.35163274]
[1752143819124,1.44888856,669.77,669.29,3.35163274]
[1752143819326,1.44888856,669.76,669.29,3.35163274]
[1752143819523,1.44888856,669.75,669.29,3.35163274]
[1752143819723,1.66763039,669.94,669.29,3.35163274]
[1752143819724,1.44888856,669.74,669.29,3.35163274]
[1752143819922,1.44888856,669.73,669.28,0.25977225]
[1752143820126,1.44888856,669.72,669.28,0.25977225]
[1752143820323,1.44888856,669.71,669.28,0.25977225]
[1752143820527,1.66763039,669.96,669.28,0.25977225]
[1752143820824,1.44897392,669.95,669.28,0.25977225]
[1752143821023,1.44897392,669.94,669.28,0.25977225]
[1752143821328,1.44897392,669.93,669.29,1.38]
[1752143821530,1.44897392,669.92,669.29,1.38]
[1752143821826,1.44897392,669.91,669.29,1.38]
[1752143822028,1.44897392,669.9,669.29,1.38]
[1752143822323,1.44897392,669.89,669.29,1.38]
[1752143822532,1.44897392,669.88,669.29,1.38]
[1752143822722,1.44897392,669.87,669.29,1.38]
[1752143822922,1.44897392,669.86,669.29,1.38]
[1752143823125,1.44897392,669.85,669.29,1.38]
[1752143823329,1.44897392,669.84,669.29,1.38]
[1752143823529,1.44897392,669.83,669.29,1.38]
[1752143823729,1.44897392,669.82,669.29,1.38]
[1752143823929,1.44897392,669.81,669.29,1.38]
[1752143824229,1.44897392,669.8,669.29,1.38]
[1752143824426,1.44897392,669.79,669.29,1.38]
[1752143824630,1.44885956,669.78,669.29,1.38]
[1752143824926,1.44885956,669.77,669.29,1.38]
[1752143825229,1.44885956,669.76,669.29,1.38]
[1752143825426,1.44885956,669.75,669.29,1.38]
[1752143825625,1.44885956,669.74,669.29,1.38]
[1752143825924,1.44885956,669.73,669.29,1.38]
[1752143826124,1.44885956,669.72,669.29,1.38]
[1752143826324,1.44885956,669.71,669.29,1.38]
[1752143826526,1.66949085,669.96,669.29,1.38]
[1752143826730,1.44879895,669.95,669.29,1.38]
[1752143827030,1.44879895,669.94,669.29,1.38]
[1752143827226,1.44879895,669.93,669.29,1.38]
[1752143827427,1.44879895,669.92,669.29,1.38]
[1752143827726,1.44879895,669.91,669.29,1.38]
[1752143827930,1.44879895,669.9,669.29,1.38]
[1752143828230,1.44879895,669.89,669.29,1.38]
[1752143828429,1.44879895,669.88,669.29,1.38]
[1752143828630,1.44879895,669.87,669.29,1.38]
[1752143828827,1.44879895,669.86,669.29,1.38]
[1752143829030,1.44879895,669.85,669.29,1.38]
[1752143829331,1.44879895,669.84,669.29,1.38]
[1752143829632,1.44879895,669.83,669.29,1.38]
[1752143829827,1.44879895,669.82,669.29,1.38]
[1752143830026,1.44879895,669.81,669.29,1.38]
[1752143830231,1.44879895,669.8,669.29,1.38]
[1752143830430,1.44879895,669.79,669.29,1.38]
[1752143830733,1.44879895,669.78,669.29,1.38]
[1752143830932,1.44879895,669.77,669.29,1.38]
[1752143831136,1.44879895,669.76,669.29,1.38]
[1752143831333,1.44879895,669.75,669.29,1.38]
[1752143831531,1.44879895,669.74,669.29,1.38]
[1752143831832,1.44879895,669.73,669.29,1.38]
[1752143832031,1.44879895,669.72,669.29,1.38]
[1752143832333,1.66949085,670.02,669.29,1.38]
[1752143832530,1.44872195,670.01,669.29,1.38]
[1752143832732,1.44872195,670.0,669.29,1.38]
[1752143832930,1.44872195,669.99,669.29,1.38]
[1752143833134,1.44872195,669.98,669.29,1.38]
[1752143833435,1.44872195,669.97,669.29,1.38]
[1752143833636,1.44872195,669.96,669.29,1.38]
[1752143833934,1.44872195,669.95,669.29,1.38]